fUST/lending_fUST_20250720
["ID","MTS","AMOUNT","RATE_DAILY","PERIOD"]
[373360278,1752967842950,-460.0,0.0001943,2]
[373360279,1752967842960,-1079.24,0.0001943,2]
[373360280,1752967842969,-460.0,0.0001943,2]
[373360281,1752967842979,-1049.88,0.0001943,2]
[373360282,1752967842989,-460.0,0.0001943,2]
[373360283,1752967843006,-460.0,0.0001943,2]
[373360284,1752967843015,-460.0,0.0001943,2]
[373360285,1752967843025,-460.0,0.0001943,2]
[373360286,1752967843035,-460.0,0.0001943,2]
[373360288,1752967843044,-1792.67,0.0001943,2]
[373360289,1752967843053,-460.0,0.0001943,2]
[373360290,1752967843062,-460.0,0.0001943,2]
[373360291,1752967843071,-460.0,0.0001943,2]
[373360292,1752967843082,-460.0,0.0001943,2]
[373360293,1752967843091,-460.0,0.0001943,2]
[373360294,1752967843100,-460.0,0.00019431,2]
[373360295,1752967843109,-460.0,0.00019431,2]
[373360296,1752967843119,-460.0,0.00019431,2]
[373360298,1752967843128,-460.0,0.00019431,2]
[373360300,1752967843137,-460.0,0.00019431,2]
[373360302,1752967843146,-683.81,0.00019431,2]
[373360304,1752967843155,-460.0,0.00019431,2]
[373360306,1752967843165,-460.0,0.00019431,2]
[373360308,1752967843173,-460.0,0.00019431,2]
[373360309,1752967843182,-460.0,0.00019431,2]
[373360310,1752967843191,-197.52058712,0.00019432,2]
[373360311,1752967843200,-460.0,0.00019432,2]
[373360312,1752967843209,-460.0,0.00019432,2]
[373360313,1752967843218,-124332.83828679,0.0001949,2]
[373360314,1752967843227,-460.0,0.00019528,2]
[373360315,1752967843236,-2197.19,0.00019529,2]
[373360316,1752967843245,-571.97414354,0.0001953,2]
[373360317,1752967843254,-571.7,0.0001953,2]
[373360318,1752967843263,-723.71,0.0001953,2]
[373360319,1752967843273,-477.39,0.0001953,2]
[373360320,1752967843282,-184.570996,0.00019531,2]
[373360321,1752967843291,-184.570996,0.00019531,2]
[373360322,1752967843300,-568.29,0.00019531,2]
[373360323,1752967843309,-460.0,0.00019531,2]
[373360324,1752967843319,-234.116647,0.00019532,2]
[373360325,1752967843328,-234.116647,0.00019532,2]
[373360326,1752967843337,-3080.74172674,0.00019624,2]
[373360327,1752967843347,-460.0,0.00019703,2]
[373360328,1752967843356,-460.0,0.00019703,2]
[373360329,1752967843366,-721.04,0.00019703,2]
[373360330,1752967843375,-460.0,0.00019704,2]
[373360331,1752967843384,-460.0,0.00019704,2]
[373360332,1752967843394,-460.0,0.00019704,2]
[373360333,1752967843403,-460.0,0.00019704,2]
[373360334,1752967843413,-460.0,0.00019704,2]
[373360335,1752967843422,-460.0,0.00019704,2]
[373360336,1752967843432,-460.0,0.00019704,2]
[373360337,1752967843441,-963.18,0.00019704,2]
[373360338,1752967843450,-460.0,0.00019704,2]
[373360339,1752967843460,-460.0,0.00019704,2]
[373360340,1752967843469,-460.0,0.00019704,2]
[373360341,1752967843479,-460.0,0.00019704,2]
[373360342,1752967843488,-1079.24,0.00019704,2]
[373360343,1752967843498,-460.0,0.00019704,2]
[373360345,1752967843508,-1049.88,0.00019704,2]
[373360346,1752967843518,-460.0,0.00019704,2]
[373360347,1752967843527,-460.0,0.00019704,2]
[373360348,1752967843536,-460.0,0.00019704,2]
[373360349,1752967843546,-460.0,0.00019704,2]
[373360350,1752967843555,-460.0,0.00019704,2]
[373360351,1752967843565,-1792.67,0.00019704,2]
[373360352,1752967843575,-460.0,0.00019704,2]
[373360353,1752967843584,-460.0,0.00019704,2]
[373360354,1752967843594,-460.0,0.00019704,2]
[373360355,1752967843603,-460.0,0.00019704,2]
[373360357,1752967843613,-460.0,0.00019704,2]
[373360359,1752967843623,-460.0,0.00019705,2]
[373360360,1752967843632,-460.0,0.00019705,2]
[373360361,1752967843642,-268.39,0.00019705,2]
[373360362,1752967843651,-460.0,0.00019705,2]
[373360363,1752967843661,-683.81,0.00019705,2]
[373360364,1752967843670,-460.0,0.00019705,2]
[373360365,1752967843679,-460.0,0.00019705,2]
[373360366,1752967843688,-460.0,0.00019705,2]
[373360367,1752967843697,-460.0,0.00019705,2]
[373360368,1752967843706,-460.0,0.00019706,2]
[373360369,1752967843715,-460.0,0.00019706,2]
[373360370,1752967843725,-504.93958316,0.00019758,2]
[373360371,1752967843734,-214.26297717,0.00019758,2]
[373360372,1752967843744,-207.4,0.00019769,2]
[373360373,1752967843753,-151.0,0.00019769,2]
[373360374,1752967843763,-151.0,0.00019769,2]
[373360375,1752967843772,-151.0,0.00019769,2]
[373360376,1752967843782,-151.0,0.00019769,2]
[373360377,1752967843791,-151.0,0.00019769,2]
[373360378,1752967843800,-151.0,0.00019769,2]
[373360379,1752967843809,-151.0,0.00019769,2]
[373360380,1752967843819,-151.0,0.00019769,2]
[373360381,1752967843828,-151.0,0.00019769,2]
[373360382,1752967843837,-151.0,0.00019769,2]
[373360383,1752967843847,-151.0,0.00019769,2]
[373360384,1752967843856,-151.0,0.00019769,2]
[373360385,1752967843865,-151.0,0.00019769,2]
[373360386,1752967843874,-151.0,0.00019769,2]
[373360387,1752967843883,-151.0,0.00019769,2]
[373360388,1752967843892,-151.0,0.00019769,2]
[373360389,1752967843901,-460.0,0.00019802,2]
[373360390,1752967843911,-2197.19,0.00019803,2]
[373360391,1752967843920,-184.570996,0.00019804,2]
[373360392,1752967843929,-184.570996,0.00019804,2]
[373360393,1752967843939,-571.7,0.00019804,2]
[373360394,1752967843949,-723.71,0.00019804,2]
[373360396,1752967843958,-477.39,0.00019804,2]
[373360397,1752967843968,-234.116647,0.00019805,2]
[373360398,1752967843977,-234.116647,0.00019805,2]
[373360399,1752967843987,-568.29,0.00019805,2]
[373360400,1752967843998,-460.0,0.00019805,2]
[373360401,1752967844007,-3080.74172674,0.00019866,2]
[373360402,1752967844016,-500.0,0.00019973,2]
[373360403,1752967844026,-152.474156,0.00019973,2]
[373360404,1752967844035,-460.0,0.00019977,2]
[373360405,1752967844046,-460.0,0.00019977,2]
[373360406,1752967844055,-721.04,0.00019977,2]
[373360407,1752967844064,-360.14516031,0.00019978,2]
[373360408,1752967844074,-460.0,0.00019978,2]
[373360409,1752967844084,-460.0,0.00019978,2]
[373360410,1752967844093,-460.0,0.00019978,2]
[373360411,1752967844102,-268.39,0.00019978,2]
[373360412,1752967844112,-460.0,0.00019978,2]
[373360413,1752967844121,-460.0,0.00019978,2]
[373360414,1752967844131,-963.18,0.00019978,2]
[373360415,1752967844140,-460.0,0.00019978,2]
[373360416,1752967844150,-460.0,0.00019978,2]
[373360417,1752967844160,-460.0,0.00019978,2]
[373360418,1752967844169,-594.28,0.00019978,2]
[373360419,1752967844178,-1079.24,0.00019978,2]
[373360420,1752967844188,-306.72,0.00019978,2]
[373360421,1752967844197,-1049.88,0.00019978,2]
[373360422,1752967844206,-460.0,0.00019978,2]
[373360423,1752967844215,-460.0,0.00019978,2]
[373360424,1752967844225,-460.0,0.00019978,2]
[373360425,1752967844235,-460.0,0.00019978,2]
[373360426,1752967844244,-460.0,0.00019978,2]
[373360427,1752967844254,-1792.67,0.00019978,2]
[373360428,1752967844263,-197.26587956,0.00019978,2]
[373360429,1752967844273,-460.0,0.00019978,2]
[373360430,1752967844282,-460.0,0.00019978,2]
[373360431,1752967844292,-460.0,0.00019978,2]
[373360432,1752967844411,-460.0,0.00019978,2]
[373360433,1752967844421,-460.0,0.00019979,2]
[373360434,1752967844431,-460.0,0.00019979,2]
[373360435,1752967844441,-460.0,0.00019979,2]
[373360436,1752967844450,-683.81,0.00019979,2]
[373360437,1752967844460,-460.0,0.00019979,2]
[373360438,1752967844469,-460.0,0.00019979,2]
[373360439,1752967844478,-156.09694749,0.00019979,2]
[373360440,1752967844488,-460.0,0.00019979,2]
[373360441,1752967844498,-550.64,0.0001998,2]
[373360442,1752967844508,-460.0,0.0001998,2]
[373360443,1752967844517,-8182.36496867,0.0002,2]
[373360444,1752967844526,-3193.95892131,0.0002,2]
[373360445,1752967844535,-362.6568148,0.0002,2]
[373360446,1752967844545,-71504.53584913,0.0002,2]
[373360447,1752967844554,-5929.79780296,0.0002,2]
[373360448,1752967844564,-71682.65200165,0.0002,2]
[373360449,1752967844574,-500.0,0.00020062,2]
[373360450,1752967844583,-500.0,0.00020062,2]
[373360451,1752967844593,-460.0,0.00020076,2]
[373360452,1752967844603,-2197.19,0.00020077,2]
[373360453,1752967844612,-184.570996,0.00020078,2]
[373360454,1752967844621,-184.570996,0.00020078,2]
[373360455,1752967844631,-571.7,0.00020078,2]
[373360456,1752967844640,-723.71,0.00020078,2]
[373360457,1752967844649,-477.39,0.00020078,2]
[373360458,1752967844658,-568.29,0.00020079,2]
[373360459,1752967844667,-460.0,0.00020079,2]
[373360460,1752967844677,-500.0,0.00020079,2]
[373360461,1752967844686,-521.28693611,0.00020079,2]
[373360462,1752967844696,-234.116647,0.0002008,2]
[373360463,1752967844705,-234.116647,0.0002008,2]
[373360464,1752967844714,-3080.74172674,0.00020107,2]
[373360465,1752967844724,-604.31728,0.00020156,2]
[373360466,1752967844733,-520.37179257,0.00020179,2]
[373360467,1752967844743,-206.668536,0.00020187,2]
[373360468,1752967844751,-460.0,0.00020251,2]
[373360469,1752967844760,-153.44,0.00020251,2]
[373360470,1752967844770,-721.04,0.00020251,2]
[373360471,1752967844779,-460.0,0.00020252,2]
[373360472,1752967844789,-460.0,0.00020252,2]
[373360473,1752967844798,-460.0,0.00020252,2]
[373360474,1752967844808,-460.0,0.00020252,2]
[373360475,1752967844817,-460.0,0.00020252,2]
[373360476,1752967844826,-963.18,0.00020252,2]
[373360477,1752967844835,-494.94645923,0.00020252,2]
[373360478,1752967844845,-460.0,0.00020252,2]
[373360479,1752967844854,-460.0,0.00020252,2]
[373360480,1752967844864,-1079.24,0.00020252,2]
[373360481,1752967844873,-1049.88,0.00020252,2]
[373360482,1752967844882,-460.0,0.00020252,2]
[373360483,1752967844891,-460.0,0.00020252,2]
[373360484,1752967844901,-198.37,0.00020252,2]
[373360485,1752967844910,-460.0,0.00020252,2]
[373360486,1752967844919,-460.0,0.00020252,2]
[373360487,1752967844928,-1792.67,0.00020252,2]
[373360488,1752967844937,-460.0,0.00020252,2]
[373360489,1752967844947,-460.0,0.00020252,2]
[373360490,1752967844956,-460.0,0.00020252,2]
[373360491,1752967844966,-460.0,0.00020252,2]
[373360492,1752967844975,-453.32,0.00020253,2]
[373360493,1752967844985,-331.94521766,0.00020253,2]
[373360494,1752967844995,-460.0,0.00020253,2]
[373360495,1752967845005,-683.81,0.00020253,2]
[373360496,1752967845015,-460.0,0.00020253,2]
[373360497,1752967845024,-460.0,0.00020253,2]
[373360498,1752967845034,-460.0,0.00020253,2]
[373360499,1752967845044,-460.0,0.00020254,2]
[373360500,1752967845053,-3080.74172674,0.00020348,3]
[373360501,1752967845063,-460.0,0.0002035,2]
[373360502,1752967845074,-2197.19,0.00020351,2]
[373360503,1752967845084,-184.570996,0.00020352,2]
[373360504,1752967845094,-184.571004,0.00020352,2]
[373360505,1752967845104,-571.7,0.00020352,2]
[373360506,1752967845113,-723.71,0.00020352,2]
[373360507,1752967845123,-477.39,0.00020352,2]
[373360508,1752967845134,-568.29,0.00020353,2]
[373360509,1752967845143,-460.0,0.00020353,2]
[373360510,1752967845153,-234.116647,0.00020355,2]
[373360511,1752967845163,-234.116647,0.00020355,2]
[373360512,1752967845172,-500.0,0.00020516,2]
[373360513,1752967845182,-1000.0,0.00020521,2]
[373360514,1752967845192,-306.72,0.00020525,2]
[373360515,1752967845201,-721.04,0.00020525,2]
[373360516,1752967845211,-460.0,0.00020526,2]
[373360517,1752967845221,-460.0,0.00020526,2]
[373360518,1752967845232,-460.0,0.00020526,2]
[373360519,1752967845241,-460.0,0.00020526,2]
[373360520,1752967845250,-460.0,0.00020526,2]
[373360521,1752967845260,-963.18,0.00020526,2]
[373360522,1752967845271,-460.0,0.00020526,2]
[373360523,1752967845281,-460.0,0.00020526,2]
[373360524,1752967845291,-1079.24,0.00020526,2]
[373360525,1752967845301,-1049.88,0.00020526,2]
[373360526,1752967845309,-460.0,0.00020526,2]
[373360527,1752967845319,-460.0,0.00020526,2]
[373360528,1752967845329,-460.0,0.00020526,2]
[373360529,1752967845338,-460.0,0.00020526,2]
[373360530,1752967845348,-1792.67,0.00020526,2]
[373360531,1752967845358,-483.72,0.00020526,2]
[373360532,1752967845368,-460.0,0.00020526,2]
[373360533,1752967845377,-460.0,0.00020526,2]
[373360534,1752967845386,-460.0,0.00020526,2]
[373360535,1752967845395,-460.0,0.00020527,2]
[373360536,1752967845404,-683.81,0.00020527,2]
[373360537,1752967845414,-460.0,0.00020527,2]
[373360538,1752967845423,-460.0,0.00020527,2]
[373360539,1752967845432,-460.0,0.00020528,2]
[373360540,1752967845442,-12612.80205064,0.0002053,3]
[373360541,1752967845451,-476.34170116,0.0002053,3]
[373360542,1752967845460,-214.52603969,0.0002056,3]
[373360543,1752967845470,-3080.74172674,0.0002059,3]
[373360544,1752967845479,-273.42693762,0.0002061,2]
[373360545,1752967845488,-1000.0,0.0002061,2]
[373360546,1752967845498,-460.0,0.00020624,2]
[373360547,1752967845507,-2197.19,0.00020625,2]
[373360548,1752967845516,-571.7,0.00020626,2]
[373360549,1752967845526,-723.71,0.00020626,2]
[373360550,1752967845535,-477.39,0.00020626,2]
[373360551,1752967845544,-568.29,0.00020627,2]
[373360552,1752967845554,-460.0,0.00020627,2]
[373360553,1752967845563,-178.503,0.00020783,2]
[373360554,1752967845572,-1159.886,0.00020783,2]
[373360555,1752967845582,-199.740759,0.0002079,7]
[373360556,1752967845591,-721.04,0.00020799,2]
[373360557,1752967845601,-438.11,0.000208,2]
[373360558,1752967845611,-225.64,0.000208,2]
[373360559,1752967845621,-589.07,0.000208,2]
[373360560,1752967845630,-276.86,0.000208,2]
[373360561,1752967845640,-460.0,0.000208,2]
[373360562,1752967845649,-963.18,0.000208,2]
[373360563,1752967845658,-460.0,0.000208,2]
[373360564,1752967845668,-460.0,0.000208,2]
[373360565,1752967845678,-1079.24,0.000208,2]
[373360566,1752967845687,-1049.88,0.000208,2]
[373360567,1752967845696,-460.0,0.000208,2]
[373360568,1752967845706,-460.0,0.000208,2]
[373360569,1752967845715,-460.0,0.000208,2]
[373360570,1752967845725,-460.0,0.000208,2]
[373360571,1752967845735,-1792.67,0.000208,2]
[373360572,1752967845744,-460.0,0.000208,2]
[373360573,1752967845754,-460.0,0.000208,2]
[373360574,1752967845763,-460.0,0.000208,2]
[373360575,1752967845773,-460.0,0.00020801,2]
[373360576,1752967845781,-683.81,0.00020801,2]
[373360577,1752967845790,-460.0,0.00020801,2]
[373360578,1752967845800,-460.0,0.00020801,2]
[373360579,1752967845809,-460.0,0.00020802,2]
[373360580,1752967845818,-3080.74172674,0.00020831,4]
[373360581,1752967845827,-234.116647,0.00020865,2]
[373360582,1752967845837,-234.116645,0.00020865,2]
[373360583,1752967845845,-190.07743784,0.00020898,2]
[373360584,1752967845854,-2197.19,0.00020899,2]
[373360585,1752967845864,-571.7,0.000209,2]
[373360586,1752967845872,-723.71,0.000209,2]
[373360587,1752967845882,-477.39,0.000209,2]
[373360588,1752967845891,-568.29,0.00020901,2]
[373360589,1752967845900,-460.0,0.00020901,2]
[373360590,1752967845910,-168.0,0.00020932,2]
[373360591,1752967845921,-3249.21134827,0.00020998,2]
[373360592,1752967845929,-2156.0,0.00021016,2]
[373360593,1752967845939,-968.0,0.00021016,2]
[373360594,1752967845949,-407.0,0.00021016,2]
[373360595,1752967845958,-416.784,0.00021016,2]
[373360596,1752967845969,-1500.0,0.00021068,2]
[373360597,1752967845978,-3080.74172674,0.00021072,4]
[373360598,1752967845989,-721.04,0.00021073,2]
[373360600,1752967846001,-460.0,0.00021074,2]
[373360602,1752967846012,-963.18,0.00021074,2]
[373360603,1752967846023,-460.0,0.00021074,2]
[373360604,1752967846032,-460.0,0.00021074,2]
[373360605,1752967846043,-1079.24,0.00021074,2]
[373360606,1752967846052,-1049.88,0.00021074,2]
[373360607,1752967846061,-460.0,0.00021074,2]
[373360608,1752967846070,-460.0,0.00021074,2]
[373360609,1752967846080,-460.0,0.00021074,2]
[373360610,1752967846090,-285.41661818,0.00021074,2]
[373360612,1752967846099,-1792.67,0.00021074,2]
[373360614,1752967846108,-460.0,0.00021074,2]
[373360616,1752967846117,-260.43,0.00021074,2]
[373360617,1752967846126,-460.0,0.00021074,2]
[373360618,1752967846135,-211.82732532,0.00021075,2]
[373360619,1752967846144,-683.81,0.00021075,2]
[373360620,1752967846154,-460.0,0.00021075,2]
[373360621,1752967846163,-239.25385722,0.00021075,2]
[373360622,1752967846172,-460.0,0.00021076,2]
[373360623,1752967846182,-1347.81,0.000211,2]
[373360624,1752967846191,-168.0,0.00021134,2]
[373360625,1752967846201,-215.0738,0.00021138,2]
[373360626,1752967846211,-1500.0,0.00021158,2]
[373360627,1752967846220,-2197.19,0.00021173,2]
[373360628,1752967846230,-571.7,0.00021174,2]
[373360629,1752967846239,-723.71,0.00021174,2]
[373360630,1752967846248,-477.39,0.00021174,2]
[373360631,1752967846257,-568.29,0.00021175,2]
[373360632,1752967846266,-460.0,0.00021175,2]
[373360633,1752967846275,-587.0,0.00021182,2]
[373360634,1752967846284,-152.474156,0.00021225,2]
[373360635,1752967846293,-168.0,0.00021265,2]
[373360636,1752967846302,-2616.28848869,0.00021314,5]
[373360638,1752967846441,-457.97245164,0.00017686,2]
[373360639,1752967846452,-496.23992938,0.00017686,2]
[373360640,1752967846462,-460.0,0.00017786,2]
[373360641,1752967846471,-114.00562474,0.0001806,2]
[373360642,1752967846483,-345.99437526,0.0001806,2]
[373360643,1752967846492,-114.00562474,0.00021314,5]
[373360644,1752967846503,-350.44761331,0.00021314,5]
[373360645,1752967846512,-29.91492556,0.00021339,2]
[373360646,1752967846525,-756.08507444,0.00021339,2]
[373360647,1752967846534,-721.04,0.00021347,2]
[373360648,1752967846543,-460.0,0.00021348,2]
[373360649,1752967846553,-963.18,0.00021348,2]
[373360650,1752967846562,-460.0,0.00021348,2]
[373360651,1752967846572,-460.0,0.00021348,2]
[373360652,1752967846582,-1079.24,0.00021348,2]
[373360653,1752967846591,-1049.88,0.00021348,2]
[373360654,1752967846601,-460.0,0.00021348,2]
[373360655,1752967846611,-569.44025473,0.00021348,2]
[373360656,1752967846620,-460.0,0.00021348,2]
[373360657,1752967846630,-1770.4904767,0.00021348,2]
[373360658,1752967846642,-22.1795233,0.00021348,2]
[373360659,1752967846653,-460.0,0.00021348,2]
[373360660,1752967846663,-460.0,0.00021348,2]
[373360661,1752967846673,-513.30776087,0.00021349,2]
[373360662,1752967846771,-460.0,0.00018334,2]
[373360663,1752967846782,-460.0,0.00018608,2]
[373360664,1752967846792,-460.0,0.00018882,2]
[373360665,1752967846801,-460.0,0.00019156,2]
[373360666,1752967846810,-460.0,0.0001943,2]
[373360667,1752967846820,-460.0,0.00019704,2]
[373360668,1752967846830,-460.0,0.00019978,2]
[373360669,1752967846840,-460.0,0.00020252,2]
[373360670,1752967846850,-609.08,0.00020526,2]
[373360671,1752967846859,-170.50223913,0.00021349,2]
[373360672,1752967846868,-460.0,0.00021349,2]
[373360673,1752967846878,-460.0,0.0002135,2]
[373360674,1752967846888,-786.0,0.00021362,2]
[373360675,1752967846897,-168.0,0.00021382,2]
[373360676,1752967846908,-168.0,0.00021392,2]
[373360677,1752967846919,-168.0,0.00021406,2]
[373360678,1752967846928,-2197.19,0.00021447,2]
[373360679,1752967846937,-571.7,0.00021448,2]
[373360680,1752967846947,-723.71,0.00021448,2]
[373360681,1752967846955,-477.39,0.00021448,2]
[373360682,1752967846965,-568.29,0.00021449,2]
[373360683,1752967847063,-460.0,0.00021449,2]
[373360684,1752967847086,-991.55813045,0.00021529,2]
[373360685,1752967847096,-3080.74172674,0.00021555,5]
[373360686,1752967847106,-168.0,0.00021565,2]
[373360687,1752967847131,-500.0,0.00021611,2]
[373360688,1752967847143,-500.0,0.00021612,2]
[373360689,1752967847153,-1077.24649566,0.00021616,2]
[373360690,1752967847168,-721.04,0.00021621,2]
[373360691,1752967847178,-460.0,0.00021622,2]
[373360692,1752967847188,-963.18,0.00021622,2]
[373360693,1752967847198,-460.0,0.00021622,2]
[373360694,1752967847207,-460.0,0.00021622,2]
[373360695,1752967847219,-1079.24,0.00021622,2]
[373360696,1752967847228,-1049.88,0.00021622,2]
[373360697,1752967847239,-460.0,0.00021622,2]
[373360698,1752967847249,-460.0,0.00021622,2]
[373360699,1752967847259,-1792.67,0.00021622,2]
[373360700,1752967847269,-460.0,0.00021622,2]
[373360701,1752967847279,-460.0,0.00021622,2]
[373360702,1752967847289,-683.81,0.00021623,2]
[373360703,1752967847299,-460.0,0.00021623,2]
[373360704,1752967847309,-460.0,0.00021624,2]
[373360705,1752967847323,-2000.0,0.00021706,2]
[373360706,1752967847332,-2197.19,0.00021721,2]
[373360707,1752967847342,-571.7,0.00021722,2]
[373360708,1752967847352,-723.71,0.00021722,2]
[373360709,1752967847363,-477.39,0.00021722,2]
[373360710,1752967847372,-568.29,0.00021723,2]
[373360711,1752967847382,-460.0,0.00021723,2]
[373360712,1752967847391,-3080.74172674,0.00021797,6]
[373360713,1752967847401,-168.0,0.00021825,2]
[373360714,1752967847411,-168.0,0.00021895,2]
[373360715,1752967847421,-721.04,0.00021895,2]
[373360716,1752967847432,-460.0,0.00021896,2]
[373360717,1752967847442,-963.18,0.00021896,2]
[373360718,1752967847452,-460.0,0.00021896,2]
[373360719,1752967847462,-421.5,0.00021896,2]
[373360720,1752967847471,-1079.24,0.00021896,2]
[373360721,1752967847481,-1049.88,0.00021896,2]
[373360722,1752967847491,-460.0,0.00021896,2]
[373360723,1752967847500,-460.0,0.00021896,2]
[373360724,1752967847510,-1792.67,0.00021896,2]
[373360725,1752967847519,-584.56967311,0.00021896,2]
[373360726,1752967847528,-460.0,0.00021896,2]
[373360727,1752967847538,-683.81,0.00021897,2]
[373360728,1752967847548,-460.0,0.00021897,2]
[373360729,1752967847558,-460.0,0.00021898,2]
[373360730,1752967847567,-168.0,0.00021903,2]
[373360731,1752967847576,-150.0,0.00021918,2]
[373360732,1752967847585,-150.0,0.00021918,2]
[373360733,1752967847595,-278.78295819,0.00021918,2]
[373360734,1752967847604,-179.37146608,0.00021918,2]
[373360735,1752967847613,-2197.19,0.00021995,2]
[373360736,1752967847623,-571.7,0.00021996,2]
[373360737,1752967847632,-723.71,0.00021996,2]
[373360738,1752967847641,-477.39,0.00021996,2]
[373360739,1752967847650,-568.29,0.00021997,2]
[373360740,1752967847660,-460.0,0.00021997,2]
[373360741,1752967847669,-161.0,0.00022,2]
[373360742,1752967847678,-5557.1,0.00022,7]
[373360743,1752967847687,-161.0,0.00022,2]
[373360744,1752967847697,-1769.9,0.00022,7]
[373360745,1752967847707,-3080.74172674,0.00022038,6]
[373360746,1752967847716,-168.0,0.00022136,2]
[373360747,1752967847725,-721.04,0.00022169,2]
[373360748,1752967847746,-460.0,0.0002217,2]
[373360749,1752967847759,-963.18,0.0002217,2]
[373360750,1752967847769,-460.0,0.0002217,2]
[373360751,1752967847779,-1079.24,0.0002217,2]
[373360752,1752967847789,-1049.88,0.0002217,2]
[373360753,1752967847800,-460.0,0.0002217,2]
[373360754,1752967847809,-191.02391565,0.0002217,2]
[373360755,1752967847819,-1792.67,0.0002217,2]
[373360756,1752967847829,-460.0,0.0002217,2]
[373360757,1752967847838,-683.81,0.00022171,2]
[373360758,1752967847848,-460.0,0.00022171,2]
[373360759,1752967847858,-541.27205025,0.00022172,2]
[373360760,1752967847867,-500.0,0.00022193,8]
[373360761,1752967847877,-168.0,0.00022207,2]
[373360762,1752967847886,-250.0,0.00022246,2]
[373360763,1752967847896,-168.0,0.00022249,2]
[373360764,1752967847905,-2500.0,0.00022254,2]
[373360765,1752967847915,-2197.19,0.00022269,2]
[373360766,1752967847924,-571.7,0.0002227,2]
[373360767,1752967847933,-723.71,0.0002227,2]
[373360768,1752967847943,-477.39,0.0002227,2]
[373360769,1752967847953,-568.29,0.00022271,2]
[373360770,1752967847962,-460.0,0.00022271,2]
[373360771,1752967847971,-3080.74172674,0.00022279,6]
[373360772,1752967847981,-500.0,0.00022292,8]
[373360773,1752967847991,-721.04,0.00022443,2]
[373360774,1752967848005,-460.0,0.00022444,2]
[373360775,1752967848014,-963.18,0.00022444,2]
[373360776,1752967848024,-264.94,0.00022444,2]
[373360777,1752967848034,-1079.24,0.00022444,2]
[373360778,1752967848044,-1049.88,0.00022444,2]
[373360779,1752967848054,-460.0,0.00022444,2]
[373360780,1752967848063,-1792.67,0.00022444,2]
[373360781,1752967848074,-383.789448,0.00022444,2]
[373360782,1752967848084,-683.81,0.00022445,2]
[373360783,1752967848094,-460.0,0.00022445,2]
[373360784,1752967848103,-250.0,0.00022466,2]
[373360785,1752967848112,-300.0,0.00022466,2]
[373360786,1752967848122,-152.474156,0.00022476,2]
[373360787,1752967848131,-7766.86398,0.0002249,7]
[373360788,1752967848141,-476.34170116,0.000225,7]
[373360789,1752967848150,-223.0315306,0.00022507,2]
[373360790,1752967848160,-3080.74172674,0.00022521,7]
[373360791,1752967848170,-2197.19,0.00022543,2]
[373360792,1752967848180,-571.7,0.00022544,2]
[373360793,1752967848190,-723.71,0.00022544,2]
[373360794,1752967848199,-477.39,0.00022544,2]